Workbook

Sheet Services-Produits
A1: Produit | B1: Price
A2: Abbott Freestyle 2 | B2: 91.4
A3: Abbott Sensor | B3: 65.3
A4: Bactoflor | B4: 69.8
A5: Biotin | B5: 37.25
A6: Biotin + NaCl | B6: 37.25
A7: B-Kompleks | B7: 46.8
A8: Black cumin capsules | B8: 34.8
A9: Bosvene Akba | B9: 215.11
A10: Cholin Inject | B10: 43
A11: C-Intercell 650 mg Vitamin C, 90 Kapseln | B11: 27.99
A12: Curcumin + NaCl 0,9% | B12: 116.22
A13: Curcumin 150 mg | B13: 229.2
A14: curcumin 75 mg | B14: 116.22
A15: E-Inject | B15: 41.2
A16: Epinativ Injection | B16: 133.61
A17: Face treatment Chin contouring | B17: 600
A18: Fermanose | B18: 46.2
A19: Fiber-Intercell | B19: 40.49
A20: Gut Microbiome Therapy | B20: 6912.5
A21: Gynophilus | B21: 19.8
A22: Gynophylus | B22: 19.8
A23: Hepar | B23: 43.7
A24: Hydroxiprolin | B24: 68.9
A25: Hypericin | B25: 198.7
A26: Immunocare | B26: 220
A27: Immunocare, personalised | B27: 195.7
A28: Infraorbital | B28: 600
A29: Infusion: Curcumin 75 mg | B29: 116.22
A30: Infusion: Nicotiamide | B30: 179.8
A31: Infusion: Shoga Öl | B31: 670
A32: Jantung (Herz) | B32: 584.5
A33: K2 & D3 | B33: 34.7
A34: Kantong kemih (Harnblase) | B34: 381.35
A35: Laetia | B35: 45.3
A36: Liserotota | B36: 345.3
A37: Liv 52 | B37: 14.9
A38: Magentropfen | B38: 23
A39: Magnesium | B39: 25.45
A40: Magnesium 1000 mg | B40: 34.68
A41: Magnesium Intercell | B41: 15.1
A42: Memoserin 90 Kapseln | B42: 67.7
A43: Microbiome | B43: 74.95
A44: Microbiome body lotion | B44: 29.9
A45: Microcare 4 months | B45: 571.05
A46: Microniome face serum | B46: 69.9
A47: Muskulatur (Otot) | B47: 286.4
A48: NAD+ | B48: 219.66
A49: Neuro Amino | B49: 163.2
A50: Nicotinamide | B50: 179.8
A51: NMN, Rapamune, Sildenafil & Tadalafil | B51: 67.8
A52: Oliphenolia | B52: 183.51
A53: Oliphenolia + NaCl 0,9% 150 ml | B53: 183.51
A54: Omega 7 | B54: 82.6
A55: Omega 7.0 | B55: 81.35
A56: Otak kecil (Kleinhirn) | B56: 288
A57: Ozempic | B57: 129.8
A58: Phenylalanine | B58: 106.4
A59: Phospolipide | B59: 31.28
A60: Prodigest | B60: 72.35
A61: Q10 i.v. sensitive | B61: 178.8
A62: Reservatrol + NaCl 0,9% 300 ml | B62: 178
A63: Resveratrol | B63: 178
A64: Riboflavin | B64: 127.4
A65: RNA | B65: 516.7
A66: RNA Heart | B66: 516.7
A67: RNA Injections 4 vials | B67: 516.7
A68: RNA Thymus | B68: 516.7
A69: Salvans | B69: 13.05
A70: Selenium | B70: 41.6
A71: Senolytics mixture | B71: 670
A72: Senolytics Mixture | B72: 670
A73: Spermidin | B73: 182.35
A74: Tadalafil-Mepha 10 mg | B74: 115
A75: Tadalafil-Mepha 2.5 mg | B75: 115
A76: Tadalafil-Mepha 5 mg | B76: 115
A77: Tamsulosin Retard | B77: 59.58
A78: Testicle | B78: 372.45
A79: Thymus | B79: 516.7
A80: Ventrisana | B80: 19.2
A81: Vistabel 3 zones | B81: 750
A82: Vit C | B82: 27.99
A83: Vit D3 | B83: 37
A84: Vit D3 | B84: 29.8
A85: Vit E Inject I.M.
A86: Vit, B Komplex | B86: 46.8
A87: Vit. C, Zn | B87: 21.4
A88: Vit. E IM
A89: Vit-C Intercell | B89: 27.99
A90: Xanax | B90: 42.7
A91: Zentra inject | B91: 60

Sheet Reference
A3: Invoice: 55H-0231115
A4: 15.01.2024
C5: Treatment by
C6: Dr. Roger Gmür
C7: Zürich
A14: Description | B14: Qty | C14: Price | D14: Amount
A17: Gut Microbiome Therapy | B17: 4 | C17: =IFERROR(VLOOKUP(A17,'Services-Produits'!A1:B120,2,FALSE),"") -> 6912.5 | D17: =IFERROR(B17*C17,"") -> 27650
C18: =IFERROR(VLOOKUP(A18,'Services-Produits'!A2:B121,2,FALSE),"") ->  | D18: =IFERROR(B18*C18,"") -> 
C19: =IFERROR(VLOOKUP(A19,'Services-Produits'!A3:B122,2,FALSE),"") -> 
C20: =IFERROR(VLOOKUP(A20,'Services-Produits'!A4:B123,2,FALSE),"") -> 
C21: =IFERROR(VLOOKUP(A21,'Services-Produits'!A5:B124,2,FALSE),"") -> 
C22: =IFERROR(VLOOKUP(A22,'Services-Produits'!A6:B125,2,FALSE),"") -> 
C23: =IFERROR(VLOOKUP(A23,'Services-Produits'!A7:B126,2,FALSE),"") -> 
C24: =IFERROR(VLOOKUP(A24,'Services-Produits'!A8:B127,2,FALSE),"") -> 
C25: =IFERROR(VLOOKUP(A25,'Services-Produits'!A9:B128,2,FALSE),"") -> 
C26: =IFERROR(VLOOKUP(A26,'Services-Produits'!A10:B129,2,FALSE),"") -> 
C27: =IFERROR(VLOOKUP(A27,'Services-Produits'!A11:B130,2,FALSE),"") -> 
C28: =IFERROR(VLOOKUP(A28,'Services-Produits'!A12:B131,2,FALSE),"") -> 
C29: =IFERROR(VLOOKUP(A29,'Services-Produits'!A13:B132,2,FALSE),"") -> 
C30: =IFERROR(VLOOKUP(A30,'Services-Produits'!A14:B133,2,FALSE),"") -> 
C31: =IFERROR(VLOOKUP(A31,'Services-Produits'!A8:B127,2,FALSE),"") -> 
C32: =IFERROR(VLOOKUP(A32,'Services-Produits'!A9:B128,2,FALSE),"") -> 
C33: =IFERROR(VLOOKUP(A33,'Services-Produits'!A10:B129,2,FALSE),"") -> 
C34: =IFERROR(VLOOKUP(A34,'Services-Produits'!A11:B130,2,FALSE),"") -> 
C35: =IFERROR(VLOOKUP(A35,'Services-Produits'!A12:B131,2,FALSE),"") -> 
C36: =IFERROR(VLOOKUP(A36,'Services-Produits'!A13:B132,2,FALSE),"") -> 
C37: =IFERROR(VLOOKUP(A37,'Services-Produits'!A14:B133,2,FALSE),"") -> 
A38: Total in CHF | D38: =SUM(D17:D37) -> 27650
A40: Thank you very much for your trust!

Sheet Patients
A1: Adex Yudiswan | D1: Jakarta | E1: Indonesia | F1: M | G1: 1974-12-03 | H1: SM
A2: Agus Andriyanto | D2: Jakarta | E2: Indonesia | F2: M | G2: 1967-02-16 | H2: SM
A3: Armand Wahyudi Hartono | D3: Jakarta | E3: Indonesia | F3: M | G3: 1975-05-20 | H3: SM
A4: Budi Satrio | D4: Jakarta | E4: Indonesia | F4: M | G4: 1976-05-31 | H4: SBL
A5: Chan Choi Moi | D5: Jakarta | E5: Indonesia | F5: F | G5: 1972-04-28 | H5: SM
A6: Deddy Prasetyo | D6: Jakarta | E6: Indonesia | F6: M | G6: 1968-07-26 | H6: SM
A7: Dian Suri Iriani | D7: Jakarta | E7: Indonesia | F7: F | G7: 1979-08-02 | H7: SBL
A8: Dobias Iskandar | D8: Jakarta | E8: Indonesia | F8: M | G8: 1965-11-16 | H8: SM
A9: Eileen Patricia Hartono | D9: Jakarta | E9: Indonesia | F9: F | G9: 1973-05-01 | H9: SBL
A10: Erminda Melayeni | D10: Jakarta | E10: Indonesia | F10: F | G10: 1975-10-25 | H10: SM
A11: Escy Soeleiman | D11: Jakarta | E11: Indonesia | F11: F | G11: 1965-12-09 | H11: SBL
A12: Evy Celiyanti | D12: Jakarta | E12: Indonesia | F12: F | G12: 1972-03-07 | H12: SM
A13: Herman Herry Adranacus | D13: Jakarta | E13: Indonesia | F13: M | G13: 1962-11-26 | H13: SM
A14: Isandi Harahap | D14: Jakarta | E14: Indonesia | F14: M | G14: 1958-12-10 | H14: SBL
A15: Karyoto | D15: Jakarta | E15: Indonesia | F15: M | G15: 1968-10-27 | H15: SBL
A16: Lina Iskandar | D16: Jakarta | E16: Indonesia | F16: F | G16: 1970-06-25 | H16: SBL
A17: Martha Dwi Maryani | D17: Jakarta | E17: Indonesia | F17: F | G17: 1969-05-21 | H17: SM
A18: Muhamad Mardiono | D18: Jakarta | E18: Indonesia | F18: M | G18: 1957-07-11 | H18: SM
A19: Muljadi Tjahjono | D19: Jakarta | E19: Indonesia | F19: M | G19: 1965-07-22 | H19: SM
A20: Nyoman Adhi Suryadnyana | D20: Jakarta | E20: Indonesia | F20: M | G20: 1974-10-15 | H20: SBL
A21: Romyus Permana | D21: Jakarta | E21: Indonesia | F21: M | G21: 1978-10-20 | H21: SBL
A22: Salim Lan Jaya Liem | D22: Jakarta | E22: Indonesia | F22: M | G22: 1971-06-01 | H22: SM
A23: Samuel Bob | D23: Jakarta | E23: Indonesia | F23: M | G23: 1974-01-04 | H23: SM
A24: Samuel Rusli | D24: Jakarta | E24: Indonesia | F24: M | G24: 1968-04-01 | H24: SM
A25: Shanti Tan | D25: Jakarta | E25: Indonesia | F25: F | G25: 1978-09-10 | H25: SBL
A26: Shu Shu | D26: Jakarta | E26: Indonesia | F26: F | H26: SBL
A27: Sri Wahyuswinta | D27: Jakarta | E27: Indonesia | F27: F | G27: 1969-04-04 | H27: SM
A28: Tan Kim Siong | D28: Jakarta | E28: Indonesia | F28: M | G28: 1970-11-09 | H28: SM
A29: Tan Siew Chang | D29: Jakarta | E29: Indonesia | F29: F | G29: 1967-01-13 | H29: SM
A30: Titi Salim | D30: Jakarta | E30: Indonesia | F30: M | G30: 1971-06-01 | H30: SBL
A31: Wahyu Widada | D31: Jakarta | E31: Indonesia | F31: M | G31: 1969-09-11 | H31: SM
A32: Wisnu Hermawan | D32: Jakarta | E32: Indonesia | F32: M | G32: 1972-02-16 | H32: SM
A33: Yenni Rista S | D33: Jakarta | E33: Indonesia | F33: F | G33: 1958-07-18 | H33: SBL
A34: Yenny Wijaya | D34: Jakarta | E34: Indonesia | F34: F | G34: 1973-03-16 | H34: SM
A35: Yuldi Yusman | D35: Jakarta | E35: Indonesia | F35: M | G35: 1975-07-29 | H35: SM
A36: Yulia Gunawan | D36: Jakarta | E36: Indonesia | F36: F | G36: 1983-01-06 | H36: SM

Sheet Escy Soeleiman
A3: Invoice: 55H-0231115
A4: 15.01.2024
C5: Treatment by
C6: Dr. Roger Gmür
C7: Zürich
A9: Mrs. Escy Soeleiman
A10: Jakarta
A11: Indonesia
A14: Description | B14: Qty | C14: Price | D14: Amount
A15: Patient: Escy Soeleiman, F, 09.12.1965
A17: Gut Microbiome Therapy | B17: 4 | C17: =IFERROR(VLOOKUP(A17,'Services-Produits'!A1:B120,2,FALSE),"") -> 6912.5 | D17: =IFERROR(B17*C17,"") -> 27650
A18: Vit, B Komplex | C18: =IFERROR(VLOOKUP(A18,'Services-Produits'!A2:B121,2,FALSE),"") -> 46.8 | D18: =IFERROR(B18*C18,"") -> 0
A19: Resveratrol | C19: =IFERROR(VLOOKUP(A19,'Services-Produits'!A3:B122,2,FALSE),"") -> 178 | D19: 0
A20: Immunocare | C20: =IFERROR(VLOOKUP(A20,'Services-Produits'!A4:B123,2,FALSE),"") -> 220 | D20: 0
A21: Infusion: Curcumin 75 mg | C21: =IFERROR(VLOOKUP(A21,'Services-Produits'!A5:B124,2,FALSE),"") -> 116.22 | D21: 0
A22: E-Inject | C22: =IFERROR(VLOOKUP(A22,'Services-Produits'!A6:B125,2,FALSE),"") -> 41.2 | D22: 0
A23: Vit D3 | C23: =IFERROR(VLOOKUP(A23,'Services-Produits'!A7:B126,2,FALSE),"") -> 37 | D23: 0
A24: Vit C | C24: =IFERROR(VLOOKUP(A24,'Services-Produits'!A8:B127,2,FALSE),"") -> 27.99 | D24: 0
A25: Vit. E IM | C25: =IFERROR(VLOOKUP(A25,'Services-Produits'!A9:B128,2,FALSE),"") -> 0 | D25: 0
C26: =IFERROR(VLOOKUP(A26,'Services-Produits'!A10:B129,2,FALSE),"") -> 
C27: =IFERROR(VLOOKUP(A27,'Services-Produits'!A11:B130,2,FALSE),"") -> 
C28: =IFERROR(VLOOKUP(A28,'Services-Produits'!A12:B131,2,FALSE),"") -> 
C29: =IFERROR(VLOOKUP(A29,'Services-Produits'!A13:B132,2,FALSE),"") -> 
C30: =IFERROR(VLOOKUP(A30,'Services-Produits'!A14:B133,2,FALSE),"") -> 
C31: =IFERROR(VLOOKUP(A31,'Services-Produits'!A8:B127,2,FALSE),"") -> 
C32: =IFERROR(VLOOKUP(A32,'Services-Produits'!A9:B128,2,FALSE),"") -> 
C33: =IFERROR(VLOOKUP(A33,'Services-Produits'!A10:B129,2,FALSE),"") -> 
C34: =IFERROR(VLOOKUP(A34,'Services-Produits'!A11:B130,2,FALSE),"") -> 
C35: =IFERROR(VLOOKUP(A35,'Services-Produits'!A12:B131,2,FALSE),"") -> 
C36: =IFERROR(VLOOKUP(A36,'Services-Produits'!A13:B132,2,FALSE),"") -> 
C37: =IFERROR(VLOOKUP(A37,'Services-Produits'!A14:B133,2,FALSE),"") -> 
A38: Total in CHF | D38: =SUM(D17:D37) -> 27650
A40: Thank you very much for your trust!

Sheet Muhamad Mardiono
A3: Invoice: 55H-0231115
A4: 11.01.2024
C5: Treatment by
C6: Dr. Roger Gmür
C7: Zürich
A9: Mr. Muhamad Mardiono
A10: Jakarta
A11: Indonesia
A14: Description | B14: Qty | C14: Price | D14: Amount
A15: Patient: Muhamad Mardiono, M, 11.07.1957
A17: Gut Microbiome Therapy | B17: 4 | C17: =IFERROR(VLOOKUP(A17,'Services-Produits'!A1:B120,2,FALSE),"") -> 6912.5 | D17: =IFERROR(B17*C17,"") -> 27650
A18: Riboflavin | B18: 5 | C18: =IFERROR(VLOOKUP(A18,'Services-Produits'!A2:B121,2,FALSE),"") -> 127.4 | D18: =IFERROR(B18*C18,"") -> 637
A19: Tadalafil-Mepha 10 mg | B19: 9 | C19: =IFERROR(VLOOKUP(A19,'Services-Produits'!A3:B122,2,FALSE),"") -> 115 | D19: 1035
A20: Infusion: Shoga Öl | B20: 12 | C20: =IFERROR(VLOOKUP(A20,'Services-Produits'!A4:B123,2,FALSE),"") -> 670 | D20: 8040
A21: Phospolipide | B21: 2 | C21: =IFERROR(VLOOKUP(A21,'Services-Produits'!A5:B124,2,FALSE),"") -> 31.28 | D21: 62.56
A22: Bactoflor | C22: =IFERROR(VLOOKUP(A22,'Services-Produits'!A6:B125,2,FALSE),"") -> 
C23: =IFERROR(VLOOKUP(A23,'Services-Produits'!A7:B126,2,FALSE),"") -> 
C24: =IFERROR(VLOOKUP(A24,'Services-Produits'!A8:B127,2,FALSE),"") -> 
C25: =IFERROR(VLOOKUP(A25,'Services-Produits'!A9:B128,2,FALSE),"") -> 
C26: =IFERROR(VLOOKUP(A26,'Services-Produits'!A10:B129,2,FALSE),"") -> 
C27: =IFERROR(VLOOKUP(A27,'Services-Produits'!A11:B130,2,FALSE),"") -> 
C28: =IFERROR(VLOOKUP(A28,'Services-Produits'!A12:B131,2,FALSE),"") -> 
C29: =IFERROR(VLOOKUP(A29,'Services-Produits'!A13:B132,2,FALSE),"") -> 
C30: =IFERROR(VLOOKUP(A30,'Services-Produits'!A14:B133,2,FALSE),"") -> 
C31: =IFERROR(VLOOKUP(A31,'Services-Produits'!A8:B127,2,FALSE),"") -> 
C32: =IFERROR(VLOOKUP(A32,'Services-Produits'!A9:B128,2,FALSE),"") -> 
C33: =IFERROR(VLOOKUP(A33,'Services-Produits'!A10:B129,2,FALSE),"") -> 
C34: =IFERROR(VLOOKUP(A34,'Services-Produits'!A11:B130,2,FALSE),"") -> 
C35: =IFERROR(VLOOKUP(A35,'Services-Produits'!A12:B131,2,FALSE),"") -> 
C36: =IFERROR(VLOOKUP(A36,'Services-Produits'!A13:B132,2,FALSE),"") -> 
C37: =IFERROR(VLOOKUP(A37,'Services-Produits'!A14:B133,2,FALSE),"") -> 
A38: Total in CHF | D38: =SUM(D17:D37) -> 37424.56
A40: Thank you very much for your trust!

Sheet Wahyu Widada
A1: Services-Produits
A2: Reference
A3: Patients
A4: Muhamad Mardiono
A5: Wahyu Widada
A6: Test 2 pages
A7: Feuil2
A8: Feuil3
A9: Feuil4
A10: Reference1
A11: Menu
A15: Agus Andriyanto
A16: Agus Andriyanto
A17: Agus Andriyanto
A18: Agus Andriyanto
A19: Agus Andriyanto
A20: Agus Andriyanto
A21: Agus Andriyanto
A22: Agus Andriyanto

Sheet Test 2 pages
A1: 5346
A3: Invoice: 55H-0231115
A4: 23.12.2023
C5: Treatment by | E5: Description | F5: Qty | G5: Price | H5: Amount
C6: Dr. Roger Gmür | E6: Patient: Deddy Prasetyo, M, 26.07.1968
C7: Zürich
E8: Gut Microbiome Therapy | F8: 4 | G8: =IFERROR(VLOOKUP(E8,'Services-Produits'!#REF!,2,FALSE),"") ->  | H8: =IFERROR(F8*G8,"") -> 
A9: Mr. Deddy Prasetyo | E9: curcumin 75 mg | F9: 1 | G9: =IFERROR(VLOOKUP(E9,'Services-Produits'!#REF!,2,FALSE),"") ->  | H9: =IFERROR(F9*G9,"") -> 
A10: Jakarta | E10: Bosvene Akba | F10: 1 | G10: =IFERROR(VLOOKUP(E10,'Services-Produits'!#REF!,2,FALSE),"") -> 
A11: Indonesia | E11: Gynophilus | F11: 1 | G11: =IFERROR(VLOOKUP(E11,'Services-Produits'!#REF!,2,FALSE),"") -> 
G12: =IFERROR(VLOOKUP(E12,'Services-Produits'!#REF!,2,FALSE),"") -> 
G13: =IFERROR(VLOOKUP(E13,'Services-Produits'!#REF!,2,FALSE),"") -> 
A14: Description | B14: Qty | C14: Price | D14: Amount | G14: =IFERROR(VLOOKUP(E14,'Services-Produits'!#REF!,2,FALSE),"") -> 
A15: Patient: Deddy Prasetyo, M, 26.07.1968 | G15: =IFERROR(VLOOKUP(E15,'Services-Produits'!#REF!,2,FALSE),"") -> 
G16: =IFERROR(VLOOKUP(E16,'Services-Produits'!#REF!,2,FALSE),"") -> 
A17: Gut Microbiome Therapy | B17: 4 | C17: =IFERROR(VLOOKUP(A17,'Services-Produits'!A1:B120,2,FALSE),"") -> 6912.5 | D17: =IFERROR(B17*C17,"") -> 27650 | G17: =IFERROR(VLOOKUP(E17,'Services-Produits'!E1:F120,2,FALSE),"") -> 
A18: curcumin 75 mg | B18: 1 | C18: =IFERROR(VLOOKUP(A18,'Services-Produits'!A2:B121,2,FALSE),"") -> 116.22 | D18: =IFERROR(B18*C18,"") -> 116.22 | G18: =IFERROR(VLOOKUP(E18,'Services-Produits'!E2:F121,2,FALSE),"") -> 
A19: Bosvene Akba | B19: 1 | C19: =IFERROR(VLOOKUP(A19,'Services-Produits'!A3:B122,2,FALSE),"") -> 215.11 | D19: 215.11 | G19: =IFERROR(VLOOKUP(E19,'Services-Produits'!E3:F122,2,FALSE),"") -> 
A20: Gynophilus | B20: 1 | C20: =IFERROR(VLOOKUP(A20,'Services-Produits'!A4:B123,2,FALSE),"") -> 19.8 | D20: 19.8 | G20: =IFERROR(VLOOKUP(E20,'Services-Produits'!E4:F123,2,FALSE),"") -> 
A21: Microbiome | B21: 8 | C21: =IFERROR(VLOOKUP(A21,'Services-Produits'!A5:B124,2,FALSE),"") -> 74.95 | D21: 599.6 | G21: =IFERROR(VLOOKUP(E21,'Services-Produits'!E5:F124,2,FALSE),"") -> 
A22: Vit, B Komplex | B22: 1 | C22: =IFERROR(VLOOKUP(A22,'Services-Produits'!A6:B125,2,FALSE),"") -> 46.8 | D22: 46.8 | G22: =IFERROR(VLOOKUP(E22,'Services-Produits'!#REF!,2,FALSE),"") -> 
A23: Fermanose | B23: 2 | C23: =IFERROR(VLOOKUP(A23,'Services-Produits'!A7:B126,2,FALSE),"") -> 46.2 | D23: 92.4 | G23: =IFERROR(VLOOKUP(E23,'Services-Produits'!#REF!,2,FALSE),"") -> 
A24: Fermanose | B24: 6 | C24: =IFERROR(VLOOKUP(A24,'Services-Produits'!A8:B127,2,FALSE),"") -> 46.2 | D24: 277.2 | G24: =IFERROR(VLOOKUP(E24,'Services-Produits'!E1:F120,2,FALSE),"") -> 
A25: Oliphenolia | B25: 1 | C25: =IFERROR(VLOOKUP(A25,'Services-Produits'!A9:B128,2,FALSE),"") -> 183.51 | D25: 183.51 | G25: =IFERROR(VLOOKUP(E25,'Services-Produits'!E2:F121,2,FALSE),"") -> 
C26: =IFERROR(VLOOKUP(A26,'Services-Produits'!A10:B129,2,FALSE),"") ->  | G26: =IFERROR(VLOOKUP(E26,'Services-Produits'!E3:F122,2,FALSE),"") -> 
C27: =IFERROR(VLOOKUP(A27,'Services-Produits'!A11:B130,2,FALSE),"") ->  | G27: =IFERROR(VLOOKUP(E27,'Services-Produits'!E4:F123,2,FALSE),"") -> 
B28: 6 | C28: =IFERROR(VLOOKUP(A28,'Services-Produits'!A12:B131,2,FALSE),"") ->  | G28: =IFERROR(VLOOKUP(E28,'Services-Produits'!E5:F124,2,FALSE),"") -> 
B29: 1 | C29: =IFERROR(VLOOKUP(A29,'Services-Produits'!A13:B132,2,FALSE),"") ->  | E29: Total in CHF | H29: =SUM(H8:H28) -> 0
B30: 1 | C30: =IFERROR(VLOOKUP(A30,'Services-Produits'!A14:B133,2,FALSE),"") -> 
C31: =IFERROR(VLOOKUP(A31,'Services-Produits'!A8:B127,2,FALSE),"") ->  | E31: Thank you very much for your trust!
B32: 1 | C32: =IFERROR(VLOOKUP(A32,'Services-Produits'!A9:B128,2,FALSE),"") -> 
B33: 8 | C33: =IFERROR(VLOOKUP(A33,'Services-Produits'!A10:B129,2,FALSE),"") -> 
B34: 1 | C34: =IFERROR(VLOOKUP(A34,'Services-Produits'!A11:B130,2,FALSE),"") -> 
B35: 2 | C35: =IFERROR(VLOOKUP(A35,'Services-Produits'!A12:B131,2,FALSE),"") -> 
B36: 9 | C36: =IFERROR(VLOOKUP(A36,'Services-Produits'!A13:B132,2,FALSE),"") -> 
C38: =IFERROR(VLOOKUP(A38,'Services-Produits'!A14:B133,2,FALSE),"") -> 
A39: Total in CHF | D39: =SUM(D17:D38) -> 29200.64

Sheet Feuil2
A1: 123412.3 | B1: Couleur | C1: Choix | F1: Que pensez vous de ma programation ? | G1: Prévoyez vous de développer un nouveau projet?
A2: 23876.1 | B2: Bleu | C2: OUI | F2: Pourrait être mieux | G2: Pas encore maintenant
A3: 125756.23 | B3: Rouge | C3: NON
A4: 1776.2 | B4: Jaune | C4: OUI
A5: 287699.34
A6: 2328767.1
A7: 1238976
A8: 239898.7
A9: 846465

Sheet Feuil3
A1: Nom | B1: Adresse1 | C1: Adresse2 | D1: Ville | E1: Pays | F1: Sexe | G1: Naissance | H1: Entreprise
A2: Adex Yudiswan | D2: Jakarta | E2: Indinesia | F2: M | G2: 23.11.1978 | H2: SM
A3: Agus Andriyanto | D3: Jakarta | E3: Indonesia | F3: M | G3: 1967-02-16 | H3: SM
A4: Armand Wahyudi Hartono | D4: Jakarta | E4: Indonesia | F4: M | G4: 1975-05-20 | H4: SM
A5: Budi Satrio | D5: Jakarta | E5: Indonesia | F5: M | G5: 12.09.1987 | H5: SBL
A6: Chan Choi Moi | D6: Jakarta | E6: Indonesia | F6: F | G6: 17.04.1968 | H6: SM
A7: Deddy Prasetyo | D7: Jakarta | E7: Indonesia | F7: M | G7: 19.07.1970 | H7: SM
A8: Dian Suri Iriani | D8: Jakarta | E8: Indonesia | F8: F | G8: 02.08.1979 | H8: SBL
A9: Dobias Iskandar | D9: Jakarta | E9: Indonesia | F9: M | G9: 1965-11-16 | H9: SM
A10: Eileen Patricia Hartono | D10: Jakarta | E10: Indonesia | F10: F | G10: 1973-05-01 | H10: SBL
A11: Erminda Melayeni | D11: Jakarta | E11: Indonesia | F11: F | G11: 1975-10-25 | H11: SM
A12: Escy Soeleiman | D12: Jakarta | E12: Indonesia | F12: F | G12: 1965-12-09 | H12: SBL
A13: Evy Celiyanti | D13: Jakarta | E13: Indonesia | F13: F | G13: 1972-03-07 | H13: SM
A14: Herman Herry Adranacus | D14: Jakarta | E14: Indonesia | F14: M | G14: 1962-11-26 | H14: SM
A15: Isandi Harahap | D15: Jakarta | E15: Indonesia | F15: M | G15: 1958-12-10 | H15: SBL
A16: Karyoto | D16: Jakarta | E16: Indonesia | F16: M | G16: 1968-10-27 | H16: SBL
A17: Leonardo Di Caprio | D17: Madrid | E17: Espagne | F17: M | G17: 12.03.2001 | H17: SM
A18: Lina Iskandar | D18: Jakarta | E18: Indonesia | F18: F | G18: 1970-06-25 | H18: SBL
A19: Martha Dwi Maryani | D19: Jakarta | E19: Indonesia | F19: F | G19: 1969-05-21 | H19: SM
A20: Muhamad Mardiono | D20: Jakarta | E20: Indonesia | F20: M | G20: 1957-07-11 | H20: SM
A21: Muljadi Tjahjono | D21: Jakarta | E21: Indonesia | F21: M | G21: 1965-07-22 | H21: SM
A22: Nicolas Marius Boeschlin | D22: Bern | E22: Suisse | F22: M | G22: 20.03.2009 | H22: SBL
A23: Nyoman Adhi Suryadnyana | D23: Jakarta | E23: Indonesia | F23: M | G23: 1974-10-15 | H23: SBL
A24: Pierre Boeschlin | D24: Bern | E24: Suisse | F24: M | G24: 1960-03-19 | H24: SM
A25: Romyus Permana | D25: Jakarta | E25: Indonesia | F25: M | G25: 1978-10-20 | H25: SBL
A26: Salim Lan Jaya Liem | D26: Jakarta | E26: Indonesia | F26: M | G26: 1971-06-01 | H26: SM
A27: Samuel Bob | D27: Jakarta | E27: Indonesia | F27: M | G27: 1974-01-04 | H27: SM
A28: Samuel Rusli | D28: Jakarta | E28: Indonesia | F28: M | G28: 1968-04-01 | H28: SM
A29: Shanti Tan | D29: Jakarta | E29: Indonesia | F29: F | G29: 1978-09-10 | H29: SBL
A30: Shu Shu | D30: Jakarta | E30: Indonesia | F30: F | G30: 11.06.1991 | H30: SBL
A31: Sri Wahyuswinta | D31: Jakarta | E31: Indonesia | F31: F | G31: 1969-04-04 | H31: SM
A32: Tan Kim Siong | D32: Jakarta | E32: Indonesia | F32: M | G32: 1970-11-09 | H32: SM
A33: Tan Siew Chang | D33: Jakarta | E33: Indonesia | F33: F | G33: 1967-01-13 | H33: SM
A34: Titi Salim | D34: Jakarta | E34: Indonesia | F34: M | G34: 1971-06-01 | H34: SBL
A35: Wahyu Widada | D35: Jakarta | E35: Indonesia | F35: M | G35: 1969-09-11 | H35: SM
A36: Wisnu Hermawan | D36: Jakarta | E36: Indonesia | F36: M | G36: 1972-02-16 | H36: SM
A37: Yenni Rista S | D37: Jakarta | E37: Indonesia | F37: F | G37: 1958-07-18 | H37: SBL
A38: Yenny Wijaya | D38: Jakarta | E38: Indonesia | F38: F | G38: 1973-03-16 | H38: SM
A39: Yuldi Yusman | D39: Jakarta | E39: Indonesia | F39: M | G39: 1975-07-29 | H39: SM
A40: Yulia Gunawan | D40: Jakarta | E40: Indonesia | F40: F | G40: 1983-01-06 | H40: SM

Sheet Feuil4
A1: Korticobra | B1: 120.3
A2: Abbott Freestyle 2 | B2: 91.4
A3: Abbott Sensor | B3: 65.3
A4: Bactoflor | B4: 69.8
A5: Biotin | B5: 37.25
A6: Biotin + NaCl | B6: 37.25
A7: B-Kompleks | B7: 46.8
A8: Black cumin capsules | B8: 34.8
A9: Bosvene Akba | B9: 215.11
A10: Cholin Inject | B10: 43
A11: C-Intercell 650 mg Vitamin C, 90 Kapseln | B11: 27.99
A12: Curcumin + NaCl 0,9% | B12: 116.22
A13: Curcumin 150 mg | B13: 229.2
A14: curcumin 75 mg | B14: 116.22
A15: E-Inject | B15: 41.2
A16: Epinativ Injection | B16: 133.61
A17: Face treatment Chin contouring | B17: 600
A18: Fermanose | B18: 46.2
A19: Fiber-Intercell | B19: 40.49
A20: Gut Microbiome Therapy | B20: 6912.5
A21: Gynophilus | B21: 19.8
A22: Gynophylus | B22: 19.8
A23: Hepar | B23: 43.7
A24: Hydroxiprolin | B24: 68.9
A25: Hypericin | B25: 198.7
A26: Immunocare | B26: 220
A27: Immunocare, personalised | B27: 195.7
A28: Infraorbital | B28: 600
A29: Infusion: Curcumin 75 mg | B29: 116.22
A30: Infusion: Nicotiamide | B30: 179.8
A31: Infusion: Shoga Öl | B31: 670
A32: Jantung (Herz) | B32: 584.5
A33: Jorodata3 | B33: 435
A34: K2 & D3 | B34: 34.7
A35: Kantong kemih (Harnblase) | B35: 381.35
A36: Kartabra | B36: 201.48
A37: Laetia | B37: 45.3
A38: Liserotota | B38: 345.3
A39: Liv 52 | B39: 14.9
A40: Magentropfen | B40: 23
A41: Magnesium | B41: 25.45
A42: Magnesium 1000 mg | B42: 34.68
A43: Magnesium Intercell | B43: 15.1
A44: Memoserin 90 Kapseln | B44: 67.7
A45: Microbiome | B45: 74.95
A46: Microbiome body lotion | B46: 29.9
A47: Microcare 4 months | B47: 571.05
A48: Microniome face serum | B48: 69.9
A49: Muskulatur (Otot) | B49: 286.4
A50: NAD+ | B50: 219.66
A51: Neuro Amino | B51: 163.2
A52: Nicotinamide | B52: 179.8
A53: NMN, Rapamune, Sildenafil & Tadalafil | B53: 67.8
A54: Oliphenolia | B54: 183.51
A55: Oliphenolia + NaCl 0,9% 150 ml | B55: 183.51
A56: Omega 7 | B56: 82.6
A57: Omega 7.0 | B57: 81.35
A58: Otak kecil (Kleinhirn) | B58: 288
A59: Ozempic | B59: 129.8
A60: Phenylalanine | B60: 106.4
A61: Phospolipide | B61: 31.28
A62: Prodigest | B62: 72.35
A63: Q10 i.v. sensitive | B63: 178.8
A64: Reservatrol + NaCl 0,9% 300 ml | B64: 178
A65: Resveratrol | B65: 178
A66: Riboflavin | B66: 127.4
A67: RNA | B67: 516.7
A68: RNA Heart | B68: 516.7
A69: RNA Injections 4 vials | B69: 516.7
A70: RNA Thymus | B70: 516.7
A71: Salvans | B71: 13.05
A72: Selenium | B72: 41.6
A73: Senolytics mixture | B73: 670
A74: Senolytics Mixture | B74: 670
A75: Spermidin | B75: 182.35
A76: Tadalafil-Mepha 10 mg | B76: 115
A77: Tadalafil-Mepha 2.5 mg | B77: 115
A78: Tadalafil-Mepha 5 mg | B78: 115
A79: Tamsulosin Retard | B79: 59.58
A80: Testicle | B80: 372.45
A81: Thymus | B81: 516.7
A82: Ventrisana | B82: 19.2
A83: Vistabel 3 zones | B83: 750
A84: Vit C | B84: 27.99
A85: Vit D3 | B85: 37
A86: Vit D3 | B86: 29.8
A87: Vit E Inject I.M. | B87: 39.5
A88: Vit, B Komplex | B88: 46.8
A89: Vit. C, Zn | B89: 21.4
A90: Vit. E IM | B90: 40.1
A91: Vit-C Intercell | B91: 27.99
A92: Xanax | B92: 42.7
A93: Zentra inject | B93: 60
B95: 89

Sheet Reference1
A3: Invoice: 55H-0231115
A4: 10.01.2024
C5: Treatment by
C6: Dr. Roger Gmür
C7: Zürich
A14: Description | B14: Qty | C14: Price | D14: Amount
A17: Gut Microbiome Therapy | B17: 4 | C17: =IFERROR(VLOOKUP(A17,'Services-Produits'!A1:B120,2,FALSE),"") -> 6912.5 | D17: =IFERROR(B17*C17,"") -> 27650
A18: Vit D3 | B18: 3 | C18: =IFERROR(VLOOKUP(A18,'Services-Produits'!A2:B121,2,FALSE),"") -> 37 | D18: =IFERROR(B18*C18,"") -> 111
A19: Infraorbital | B19: 5 | C19: =IFERROR(VLOOKUP(A19,'Services-Produits'!A3:B122,2,FALSE),"") -> 600 | D19: 3000
A20: Microbiome | B20: 1 | C20: =IFERROR(VLOOKUP(A20,'Services-Produits'!A4:B123,2,FALSE),"") -> 74.95 | D20: 74.95
A21: Neuro Amino | B21: 24 | C21: =IFERROR(VLOOKUP(A21,'Services-Produits'!A5:B124,2,FALSE),"") -> 163.2 | D21: 3916.8
C22: =IFERROR(VLOOKUP(A22,'Services-Produits'!A6:B125,2,FALSE),"") -> 
C23: =IFERROR(VLOOKUP(A23,'Services-Produits'!A7:B126,2,FALSE),"") -> 
C24: =IFERROR(VLOOKUP(A24,'Services-Produits'!A8:B127,2,FALSE),"") -> 
C25: =IFERROR(VLOOKUP(A25,'Services-Produits'!A9:B128,2,FALSE),"") -> 
C26: =IFERROR(VLOOKUP(A26,'Services-Produits'!A10:B129,2,FALSE),"") -> 
C27: =IFERROR(VLOOKUP(A27,'Services-Produits'!A11:B130,2,FALSE),"") -> 
C28: =IFERROR(VLOOKUP(A28,'Services-Produits'!A12:B131,2,FALSE),"") -> 
C29: =IFERROR(VLOOKUP(A29,'Services-Produits'!A13:B132,2,FALSE),"") -> 
C30: =IFERROR(VLOOKUP(A30,'Services-Produits'!A14:B133,2,FALSE),"") -> 
C31: =IFERROR(VLOOKUP(A31,'Services-Produits'!A8:B127,2,FALSE),"") -> 
C32: =IFERROR(VLOOKUP(A32,'Services-Produits'!A9:B128,2,FALSE),"") -> 
C33: =IFERROR(VLOOKUP(A33,'Services-Produits'!A10:B129,2,FALSE),"") -> 
C34: =IFERROR(VLOOKUP(A34,'Services-Produits'!A11:B130,2,FALSE),"") -> 
C35: =IFERROR(VLOOKUP(A35,'Services-Produits'!A12:B131,2,FALSE),"") -> 
C36: =IFERROR(VLOOKUP(A36,'Services-Produits'!A13:B132,2,FALSE),"") -> 
C37: =IFERROR(VLOOKUP(A37,'Services-Produits'!A14:B133,2,FALSE),"") -> 
A38: Total in CHF | D38: =SUM(D17:D37) -> 34752.75
A40: Thank you very much for your trust!

Sheet Menu
